[Event "Kvibergspelen September 2019"]
[Site "Prioritet Serneke Arena, Krutvagen 2, Gothenburg, Sweden"]
[Date "2019.09.27"]
[Round "1.16"]
[White "Adolfsson, Kjell"]
[Black "Storme, Isak"]
[Result "1-0"]
[TimeControl "15 minutes + 5 seconds per move from move one (Round 1 - 4) / 90 minutes + 30 seconds per move from move one (Round 5 - 8)"]
[BlackTitle "FM"]
[WhiteFideId "1714961"]
[BlackFideId "1728113"]
[WhiteElo "1899"]
[BlackElo "2272"]

1. Nc3 {[%clk 00:15:07]} {[%emt 00:00:03]} Nf6 {[%clk 00:14:49]} {[%emt
00:00:20]} 2. Nf3 {[%clk 00:15:11]} {[%emt 00:00:02]} c5 {[%clk 00:14:34]}
{[%emt 00:00:20]} 3. d4 {[%clk 00:15:09]} {[%emt 00:00:06]} cxd4 {[%clk
00:14:36]} {[%emt 00:00:04]} 4. Nxd4 {[%clk 00:15:12]} {[%emt 00:00:02]} d5
{[%clk 00:13:37]} {[%emt 00:01:04]} 5. Bf4 {[%clk 00:14:49]} {[%emt 00:00:28]}
Nc6 {[%clk 00:12:58]} {[%emt 00:00:44]} 6. Ndb5 {[%clk 00:14:51]} {[%emt
00:00:04]} e5 {[%clk 00:12:49]} {[%emt 00:00:15]} 7. Bg5 {[%clk 00:14:49]}
{[%emt 00:00:06]} d4 {[%clk 00:12:27]} {[%emt 00:00:27]} 8. Bxf6 {[%clk
00:14:35]} {[%emt 00:00:19]} gxf6 {[%clk 00:12:06]} {[%emt 00:00:26]} 9. Nd5
{[%clk 00:13:56]} {[%emt 00:00:44]} Bd6 {[%clk 00:11:09]} {[%emt 00:01:02]} 10.
e4 {[%clk 00:13:13]} {[%emt 00:00:48]} a6 {[%clk 00:07:47]} {[%emt 00:03:28]}
11. Nxd6+ {[%clk 00:13:06]} {[%emt 00:00:12]} Qxd6 {[%clk 00:07:49]} {[%emt
00:00:02]} 12. Qf3 {[%clk 00:13:03]} {[%emt 00:00:07]} f5 {[%clk 00:07:21]}
{[%emt 00:00:35]} 13. exf5 {[%clk 00:12:41]} {[%emt 00:00:27]} Nb4 {[%clk
00:07:19]} {[%emt 00:00:06]} 14. Nxb4 {[%clk 00:11:58]} {[%emt 00:00:48]} Qxb4+
{[%clk 00:07:22]} {[%emt 00:00:02]} 15. Kd1 {[%clk 00:11:52]} {[%emt 00:00:11]}
Qxb2 {[%clk 00:07:04]} {[%emt 00:00:23]} 16. Rc1 {[%clk 00:11:55]} {[%emt
00:00:01]} Qxa2 {[%clk 00:06:09]} {[%emt 00:01:01]} 17. Bd3 {[%clk 00:11:52]}
{[%emt 00:00:08]} f6 {[%clk 00:05:27]} {[%emt 00:00:47]} 18. Re1 {[%clk
00:11:45]} {[%emt 00:00:12]} O-O {[%clk 00:03:55]} {[%emt 00:01:37]} 19. Be4
{[%clk 00:11:31]} {[%emt 00:00:19]} Kh8 {[%clk 00:03:53]} {[%emt 00:00:06]} 20.
Bd5 {[%clk 00:11:02]} {[%emt 00:00:35]} Qb2 {[%clk 00:03:50]} {[%emt 00:00:07]}
21. Re4 {[%clk 00:10:50]} {[%emt 00:00:18]} Qb5 {[%clk 00:02:47]} {[%emt
00:01:07]} 22. Rh4 {[%clk 00:10:34]} {[%emt 00:00:21]} Qd7 {[%clk 00:02:48]}
{[%emt 00:00:03]} 23. Qh5 {[%clk 00:08:48]} {[%emt 00:01:51]} a5 {[%clk
00:01:59]} {[%emt 00:00:55]} 24. Rb1 {[%clk 00:08:13]} {[%emt 00:00:40]} a4
{[%clk 00:01:57]} {[%emt 00:00:07]} 25. Be6 {[%clk 00:07:09]} {[%emt 00:01:09]}
Qe7 {[%clk 00:01:56]} {[%emt 00:00:04]} 26. Qh6 {[%clk 00:07:02]} {[%emt
00:00:14]} Bxe6 {[%clk 00:01:38]} {[%emt 00:00:23]} 27. fxe6 {[%clk 00:07:04]}
{[%emt 00:00:02]} a3 {[%clk 00:01:40]} {[%emt 00:00:04]} 28. Rh3 {[%clk
00:06:27]} {[%emt 00:00:41]} a2 {[%clk 00:01:29]} {[%emt 00:00:16]} 29. Ra1
{[%clk 00:06:31]} {[%emt 00:00:01]} Rg8 {[%clk 00:01:25]} {[%emt 00:00:09]} 30.
Ke2 {[%clk 00:04:03]} {[%emt 00:02:33]} Rxg2 {[%clk 00:01:22]} {[%emt
00:00:09]} 31. Kf1 {[%clk 00:03:47]} {[%emt 00:00:21]} Rg7 {[%clk 00:01:09]}
{[%emt 00:00:17]} 32. Rf3 {[%clk 00:03:42]} {[%emt 00:00:10]} Qxe6 {[%clk
00:00:58]} {[%emt 00:00:16]} 33. Qxf6 {[%clk 00:03:04]} {[%emt 00:00:43]} Qc4+
{[%clk 00:00:41]} {[%emt 00:00:22]} 34. Ke1 {[%clk 00:02:16]} {[%emt 00:00:54]}
Ra6 {[%clk 00:00:11]} {[%emt 00:00:35]} 35. Qxe5 {[%clk 00:01:44]} {[%emt
00:00:37]} Qb4+ {[%clk 00:00:06]} {[%emt 00:00:10]} 36. Kf1 {[%clk 00:01:38]}
{[%emt 00:00:10]} Ra8 {[%clk 00:00:08]} {[%emt 00:00:03]} 37. Rg3 {[%clk
00:01:15]} {[%emt 00:00:29]} Qb1+ {[%clk 00:00:09]} {[%emt 00:00:05]} 38. Kg2
{[%clk 00:01:16]} {[%emt 00:00:03]} Rag8 {[%clk 00:00:07]} {[%emt 00:00:06]} 39.
Qxd4 {[%clk 00:01:14]} {[%emt 00:00:07]} Qxc2 {[%clk 00:00:11]} {[%emt
00:00:01]} 40. Qf6 {[%clk 00:00:35]} {[%emt 00:00:45]} Qe4+ {[%clk 00:00:12]}
{[%emt 00:00:03]} 41. Kf1 {[%clk 00:00:34]} {[%emt 00:00:06]} Qc4+ {[%clk
00:00:13]} {[%emt 00:00:05]} 42. Kg2 {[%clk 00:00:38]} {[%emt 00:00:01]} b5
{[%clk 00:00:12]} {[%emt 00:00:05]} 43. Kh3 {[%clk 00:00:40]} {[%emt 00:00:03]}
Qc8+ {[%clk 00:00:13]} {[%emt 00:00:05]} 44. Kg2 {[%clk 00:00:40]} {[%emt
00:00:04]} Qc4 {[%clk 00:00:13]} {[%emt 00:00:04]} 45. Kh3 {[%clk 00:00:44]}
{[%emt 00:00:02]} b4 {[%clk 00:00:09]} {[%emt 00:00:10]} 46. f4 {[%clk
00:00:36]} {[%emt 00:00:12]} b3 {[%clk 00:00:10]} {[%emt 00:00:04]} 47. Rag1
{[%clk 00:00:32]} {[%emt 00:00:09]} Qc8+ {[%clk 00:00:09]} {[%emt 00:00:07]} 48.
f5 {[%clk 00:00:29]} {[%emt 00:00:08]} b2 {[%clk 00:00:08]} {[%emt 00:00:05]}
49. Rxg7 {[%clk 00:00:31]} {[%emt 00:00:03]} Qxf5+ {[%clk 00:00:08]} {[%emt
00:00:06]} 50. Qxf5 {[%clk 00:00:35]} Rxg7 {[%clk 00:00:12]} {[%emt 00:00:01]}
51. Qf8+ {[%clk 00:00:39]} Rg8 {[%clk 00:00:16]} 52. Qxg8# {[%clk 00:00:42]}
1-0

[Event "Kvibergspelen September 2019"]
[Site "Prioritet Serneke Arena, Krutvagen 2, Gothenburg, Sweden"]
[Date "2019.09.27"]
[Round "1.17"]
[White "Sidorchuk, Dmitry"]
[Black "Olofsson, Hans-Erik"]
[Result "1-0"]
[TimeControl "15 minutes + 5 seconds per move from move one (Round 1 - 4) / 90 minutes + 30 seconds per move from move one (Round 5 - 8)"]
[WhiteFideId "14110903"]
[BlackFideId "1716212"]
[WhiteElo "2266"]
[BlackElo "1898"]

1. d4 {[%clk 00:15:06]} {[%emt 00:00:03]} Nf6 {[%clk 00:15:09]} {[%emt
00:00:02]} 2. c4 {[%clk 00:15:07]} {[%emt 00:00:04]} g6 {[%clk 00:15:12]}
{[%emt 00:00:02]} 3. Nc3 {[%clk 00:15:09]} {[%emt 00:00:03]} d5 {[%clk
00:15:15]} {[%emt 00:00:02]} 4. cxd5 {[%clk 00:15:03]} {[%emt 00:00:10]} Nxd5
{[%clk 00:15:18]} {[%emt 00:00:02]} 5. e4 {[%clk 00:15:07]} {[%emt 00:00:01]}
Nxc3 {[%clk 00:15:22]} {[%emt 00:00:02]} 6. bxc3 {[%clk 00:15:10]} {[%emt
00:00:02]} Bg7 {[%clk 00:15:25]} 7. Nf3 {[%clk 00:15:13]} {[%emt 00:00:04]} O-O
{[%clk 00:15:23]} {[%emt 00:00:07]} 8. Rb1 {[%clk 00:15:08]} {[%emt 00:00:10]}
c5 {[%clk 00:15:22]} {[%emt 00:00:06]} 9. Be2 {[%clk 00:15:09]} {[%emt
00:00:04]} Qa5 {[%clk 00:14:40]} {[%emt 00:00:47]} 10. Qd2 {[%clk 00:12:41]}
{[%emt 00:02:33]} cxd4 {[%clk 00:12:12]} {[%emt 00:02:34]} 11. cxd4 {[%clk
00:12:44]} {[%emt 00:00:02]} Qxd2+ {[%clk 00:11:50]} {[%emt 00:00:26]} 12. Bxd2
{[%clk 00:12:47]} {[%emt 00:00:02]} Nc6 {[%clk 00:11:31]} {[%emt 00:00:24]} 13.
d5 {[%clk 00:10:48]} {[%emt 00:02:04]} Nd4 {[%clk 00:11:01]} {[%emt 00:00:34]}
14. Nxd4 {[%clk 00:10:49]} {[%emt 00:00:05]} Bxd4 {[%clk 00:11:04]} {[%emt
00:00:02]} 15. O-O {[%clk 00:10:52]} {[%emt 00:00:02]} Bc5 {[%clk 00:08:25]}
{[%emt 00:02:43]} 16. Rfc1 {[%clk 00:10:00]} {[%emt 00:00:57]} b6 {[%clk
00:08:22]} {[%emt 00:00:09]} 17. Bb4 {[%clk 00:09:53]} {[%emt 00:00:11]} Bxb4
{[%clk 00:07:53]} {[%emt 00:00:35]} 18. Rxb4 {[%clk 00:09:55]} {[%emt
00:00:02]} Rd8 {[%clk 00:07:12]} {[%emt 00:00:46]} 19. Rc7 {[%clk 00:06:43]}
{[%emt 00:03:18]} e6 {[%clk 00:07:06]} {[%emt 00:00:11]} 20. Bf3 {[%clk
00:05:26]} {[%emt 00:01:22]} Rd7 {[%clk 00:05:16]} {[%emt 00:01:55]} 21. Rbc4
{[%clk 00:05:13]} {[%emt 00:00:17]} Rxc7 {[%clk 00:03:05]} {[%emt 00:02:17]} 22.
Rxc7 {[%clk 00:05:16]} {[%emt 00:00:02]} a5 {[%clk 00:03:09]} {[%emt 00:00:01]}
23. d6 {[%clk 00:04:50]} {[%emt 00:00:31]} Ba6 {[%clk 00:03:13]} {[%emt
00:00:01]} 24. e5 {[%clk 00:04:01]} {[%emt 00:00:53]} Rd8 {[%clk 00:03:13]}
{[%emt 00:00:06]} 25. Bb7 {[%clk 00:03:08]} {[%emt 00:00:58]} Bb5 {[%clk
00:01:20]} {[%emt 00:01:58]} 26. f4 {[%clk 00:02:57]} {[%emt 00:00:15]} Kf8
{[%clk 00:01:09]} {[%emt 00:00:17]} 27. Kf2 {[%clk 00:02:51]} {[%emt 00:00:10]}
h5 {[%clk 00:00:43]} {[%emt 00:00:31]} 28. Bc6 {[%clk 00:02:32]} {[%emt
00:00:25]} Bc4 {[%clk 00:00:15]} {[%emt 00:00:30]} 29. a4 {[%clk 00:02:25]}
{[%emt 00:00:14]} Bb3 {[%clk 00:00:06]} {[%emt 00:00:15]} 30. Bb5 {[%clk
00:02:19]} {[%emt 00:00:11]} Bd5 {[%clk 00:00:08]} {[%emt 00:00:02]} 31. g3
{[%clk 00:02:09]} {[%emt 00:00:16]} Rb8 {[%clk 00:00:06]} {[%emt 00:00:07]} 32.
h3 {[%clk 00:01:52]} {[%emt 00:00:21]} Rd8 {[%clk 00:00:09]} {[%emt 00:00:03]}
33. g4 {[%clk 00:01:55]} {[%emt 00:00:01]} hxg4 {[%clk 00:00:18]} {[%emt
00:00:03]} 34. hxg4 {[%clk 00:01:59]} {[%emt 00:00:02]} Rb8 {[%clk 00:00:14]}
{[%emt 00:00:02]} 35. Kg3 {[%clk 00:02:02]} Rd8 {[%clk 00:00:16]} {[%emt
00:00:04]} 36. Kh4 {[%clk 00:02:06]} Bf3 {[%clk 00:00:17]} {[%emt 00:00:03]} 37.
Kg5 {[%clk 00:02:09]} {[%emt 00:00:02]} Rb8 {[%clk 00:00:15]} {[%emt 00:00:08]}
38. Kf6 {[%clk 00:02:11]} {[%emt 00:00:03]} Rb7 {[%clk 00:00:18]} {[%emt
00:00:02]} 39. Rc8# {[%clk 00:02:13]} {[%emt 00:00:03]} 1-0

[Event "Kvibergspelen September 2019"]
[Site "Prioritet Serneke Arena, Krutvagen 2, Gothenburg, Sweden"]
[Date "2019.09.27"]
[Round "1.18"]
[White "Sjodahl, Olof"]
[Black "Malmstig, Erik"]
[Result "0-1"]
[TimeControl "15 minutes + 5 seconds per move from move one (Round 1 - 4) / 90 minutes + 30 seconds per move from move one (Round 5 - 8)"]
[BlackTitle "FM"]
[WhiteFideId "1735292"]
[BlackFideId "1702866"]
[WhiteElo "1897"]
[BlackElo "2257"]

1. e4 {[%clk 00:15:06]} {[%emt 00:00:03]} c5 {[%clk 00:15:12]} {[%emt
00:00:03]} 2. Nf3 {[%clk 00:15:08]} {[%emt 00:00:03]} d6 {[%clk 00:15:14]}
{[%emt 00:00:03]} 3. d4 {[%clk 00:15:07]} {[%emt 00:00:06]} cxd4 {[%clk
00:15:17]} {[%emt 00:00:03]} 4. Qxd4 {[%clk 00:15:06]} {[%emt 00:00:07]} a6
{[%clk 00:15:05]} {[%emt 00:00:17]} 5. c4 {[%clk 00:15:03]} {[%emt 00:00:07]}
Nc6 {[%clk 00:14:51]} {[%emt 00:00:19]} 6. Qe3 {[%clk 00:14:47]} {[%emt
00:00:21]} Nf6 {[%clk 00:14:41]} {[%emt 00:00:15]} 7. Nc3 {[%clk 00:14:43]}
{[%emt 00:00:09]} g6 {[%clk 00:14:31]} {[%emt 00:00:15]} 8. Be2 {[%clk
00:14:20]} {[%emt 00:00:28]} Bg7 {[%clk 00:14:28]} {[%emt 00:00:08]} 9. O-O
{[%clk 00:13:34]} {[%emt 00:00:51]} O-O {[%clk 00:14:28]} {[%emt 00:00:05]} 10.
Bd2 {[%clk 00:12:44]} {[%emt 00:00:54]} Ng4 {[%clk 00:14:08]} {[%emt 00:00:25]}
11. Qd3 {[%clk 00:12:07]} {[%emt 00:00:42]} f5 {[%clk 00:13:27]} {[%emt
00:00:47]} 12. Ng5 {[%clk 00:09:52]} {[%emt 00:02:20]} Nf6 {[%clk 00:13:16]}
{[%emt 00:00:17]} 13. f3 {[%clk 00:09:18]} {[%emt 00:00:38]} h6 {[%clk
00:12:10]} {[%emt 00:01:11]} 14. Nh3 {[%clk 00:09:20]} {[%emt 00:00:03]} Ne5
{[%clk 00:12:07]} {[%emt 00:00:08]} 15. Qc2 {[%clk 00:08:54]} {[%emt 00:00:31]}
fxe4 {[%clk 00:11:28]} {[%emt 00:00:45]} 16. fxe4 {[%clk 00:08:42]} {[%emt
00:00:16]} Bxh3 {[%clk 00:10:55]} {[%emt 00:00:37]} 17. gxh3 {[%clk 00:08:45]}
{[%emt 00:00:03]} Qd7 {[%clk 00:09:23]} {[%emt 00:01:38]} 18. Bf4 {[%clk
00:07:16]} {[%emt 00:01:34]} Qxh3 {[%clk 00:08:39]} {[%emt 00:00:49]} 19. Bxe5
{[%clk 00:06:59]} {[%emt 00:00:22]} dxe5 {[%clk 00:08:31]} {[%emt 00:00:13]} 20.
Rf3 {[%clk 00:06:44]} {[%emt 00:00:20]} Qe6 {[%clk 00:07:42]} {[%emt 00:00:54]}
21. c5 {[%clk 00:06:03]} {[%emt 00:00:47]} Kh7 {[%clk 00:07:06]} {[%emt
00:00:40]} 22. Rg3 {[%clk 00:05:28]} {[%emt 00:00:40]} Rfd8 {[%clk 00:05:54]}
{[%emt 00:01:17]} 23. Kh1 {[%clk 00:04:38]} {[%emt 00:00:55]} Rg8 {[%clk
00:04:41]} {[%emt 00:01:18]} 24. Rag1 {[%clk 00:04:15]} {[%emt 00:00:27]} Bh8
{[%clk 00:04:14]} {[%emt 00:00:33]} 25. b4 {[%clk 00:03:50]} {[%emt 00:00:30]}
Rad8 {[%clk 00:04:01]} {[%emt 00:00:18]} 26. h4 {[%clk 00:03:25]} {[%emt
00:00:30]} Rd4 {[%clk 00:03:23]} {[%emt 00:00:44]} 27. a3 {[%clk 00:02:55]}
{[%emt 00:00:35]} Qc6 {[%clk 00:02:35]} {[%emt 00:00:52]} 28. Bf3 {[%clk
00:02:48]} {[%emt 00:00:11]} Nd7 {[%clk 00:02:14]} {[%emt 00:00:27]} 29. Bh5
{[%clk 00:02:20]} {[%emt 00:00:33]} Nf8 {[%clk 00:02:00]} {[%emt 00:00:19]} 30.
Bg4 {[%clk 00:02:15]} {[%emt 00:00:10]} Qf6 {[%clk 00:01:48]} {[%emt 00:00:17]}
31. Qh2 {[%clk 00:01:53]} {[%emt 00:00:27]} e6 {[%clk 00:01:33]} {[%emt
00:00:21]} 32. Qh3 {[%clk 00:01:36]} {[%emt 00:00:21]} h5 {[%clk 00:01:30]}
{[%emt 00:00:08]} 33. Bxh5 {[%clk 00:01:21]} {[%emt 00:00:20]} Rd7 {[%clk
00:01:10]} {[%emt 00:00:25]} 34. Rf3 {[%clk 00:01:01]} {[%emt 00:00:25]} Qd8
{[%clk 00:01:03]} {[%emt 00:00:12]} 35. Bg4 {[%clk 00:01:02]} {[%emt 00:00:05]}
Re7 {[%clk 00:00:59]} {[%emt 00:00:08]} 36. Rgf1 {[%clk 00:00:52]} {[%emt
00:00:15]} Bg7 {[%clk 00:00:57]} {[%emt 00:00:07]} 37. h5 {[%clk 00:00:33]}
{[%emt 00:00:23]} g5 {[%clk 00:00:59]} {[%emt 00:00:04]} 38. Nd1 {[%clk
00:00:30]} {[%emt 00:00:08]} Qd4 {[%clk 00:00:51]} {[%emt 00:00:13]} 39. Nf2
{[%clk 00:00:24]} {[%emt 00:00:12]} Bh6 {[%clk 00:00:44]} {[%emt 00:00:12]} 40.
Rd3 {[%clk 00:00:27]} {[%emt 00:00:02]} Qc4 {[%clk 00:00:44]} {[%emt 00:00:06]}
41. Rc3 {[%clk 00:00:25]} {[%emt 00:00:07]} Qb5 {[%clk 00:00:41]} {[%emt
00:00:07]} 42. Re1 {[%clk 00:00:14]} {[%emt 00:00:16]} Rgg7 {[%clk 00:00:40]}
{[%emt 00:00:06]} 43. Be2 {[%clk 00:00:17]} {[%emt 00:00:01]} Qc6 {[%clk
00:00:43]} {[%emt 00:00:02]} 44. Bc4 {[%clk 00:00:16]} {[%emt 00:00:05]} g4
{[%clk 00:00:35]} {[%emt 00:00:14]} 45. Qg3 {[%clk 00:00:18]} {[%emt 00:00:04]}
Bf4 {[%clk 00:00:39]} 46. Qh4 {[%clk 00:00:21]} {[%emt 00:00:02]} g3 {[%clk
00:00:40]} {[%emt 00:00:04]} 47. Ng4 {[%clk 00:00:24]} {[%emt 00:00:01]} Rxg4
{[%clk 00:00:41]} {[%emt 00:00:04]} 48. Qxg4 {[%clk 00:00:27]} {[%emt
00:00:02]} Rg7 {[%clk 00:00:44]} {[%emt 00:00:03]} 49. Qf3 {[%clk 00:00:28]}
{[%emt 00:00:04]} Qe8 {[%clk 00:00:43]} {[%emt 00:00:05]} 50. Rd3 {[%clk
00:00:30]} {[%emt 00:00:04]} Qe7 {[%clk 00:00:46]} {[%emt 00:00:02]} 51. Kg2
{[%clk 00:00:30]} {[%emt 00:00:05]} Nd7 {[%clk 00:00:48]} {[%emt 00:00:03]} 52.
Rd6 {[%clk 00:00:28]} {[%emt 00:00:07]} Nf8 {[%clk 00:00:36]} {[%emt 00:00:17]}
53. Rh1 {[%clk 00:00:27]} {[%emt 00:00:05]} Rf7 {[%clk 00:00:38]} {[%emt
00:00:04]} 54. Qg4 {[%clk 00:00:23]} {[%emt 00:00:09]} Qf6 {[%clk 00:00:41]}
{[%emt 00:00:02]} 55. Bxe6 {[%clk 00:00:19]} {[%emt 00:00:09]} Nxe6 {[%clk
00:00:38]} {[%emt 00:00:09]} 56. Rxe6 {[%clk 00:00:22]} {[%emt 00:00:02]} Qg7
{[%clk 00:00:32]} {[%emt 00:00:10]} 57. Rg6 {[%clk 00:00:22]} {[%emt 00:00:05]}
Qf8 {[%clk 00:00:32]} {[%emt 00:00:05]} 58. Qe6 {[%clk 00:00:23]} {[%emt
00:00:04]} Be3 {[%clk 00:00:29]} {[%emt 00:00:09]} 59. Qxe5 {[%clk 00:00:15]}
{[%emt 00:00:12]} Rf2+ {[%clk 00:00:29]} {[%emt 00:00:05]} 60. Kh3 {[%clk
00:00:14]} {[%emt 00:00:06]} g2 {[%clk 00:00:33]} {[%emt 00:00:01]} 61. Qc7+
{[%clk 00:00:13]} {[%emt 00:00:06]} Rf7 {[%clk 00:00:36]} {[%emt 00:00:03]} 62.
Qxf7+ {[%clk 00:00:08]} {[%emt 00:00:10]} Qxf7 {[%clk 00:00:39]} {[%emt
00:00:01]} 63. Kxg2 {[%clk 00:00:09]} {[%emt 00:00:03]} Qf2+ {[%clk 00:00:39]}
{[%emt 00:00:05]} 64. Kh3 {[%clk 00:00:08]} {[%emt 00:00:06]} Qf3+ {[%clk
00:00:42]} {[%emt 00:00:03]} 65. Rg3 {[%clk 00:00:09]} {[%emt 00:00:04]} Qxh1+
{[%clk 00:00:45]} {[%emt 00:00:02]} 66. Kg4 {[%clk 00:00:13]} {[%emt 00:00:01]}
Qxe4+ {[%clk 00:00:49]} {[%emt 00:00:02]} 0-1

[Event "Kvibergspelen September 2019"]
[Site "Prioritet Serneke Arena, Krutvagen 2, Gothenburg, Sweden"]
[Date "2019.09.27"]
[Round "1.19"]
[White "Pham, Bich Ngoc"]
[Black "Dingertz, Erik"]
[Result "1-0"]
[TimeControl "15 minutes + 5 seconds per move from move one (Round 1 - 4) / 90 minutes + 30 seconds per move from move one (Round 5 - 8)"]
[WhiteTitle "WIM"]
[WhiteFideId "12401285"]
[BlackFideId "1741578"]
[WhiteElo "2244"]
[BlackElo "1896"]

1. g3 {[%clk 00:15:07]} {[%emt 00:00:04]} Nf6 {[%clk 00:15:04]} {[%emt
00:00:04]} 2. Bg2 {[%clk 00:15:10]} {[%emt 00:00:02]} d5 {[%clk 00:15:06]}
{[%emt 00:00:03]} 3. f4 {[%clk 00:15:13]} {[%emt 00:00:02]} e6 {[%clk
00:15:07]} {[%emt 00:00:05]} 4. Nf3 {[%clk 00:15:16]} {[%emt 00:00:01]} c5
{[%clk 00:15:10]} {[%emt 00:00:02]} 5. d3 {[%clk 00:15:20]} {[%emt 00:00:02]}
Nc6 {[%clk 00:15:11]} {[%emt 00:00:04]} 6. O-O {[%clk 00:15:22]} {[%emt
00:00:02]} Be7 {[%clk 00:14:58]} {[%emt 00:00:19]} 7. Nc3 {[%clk 00:15:25]}
{[%emt 00:00:02]} d4 {[%clk 00:14:34]} {[%emt 00:00:29]} 8. Nb1 {[%clk
00:15:27]} {[%emt 00:00:02]} O-O {[%clk 00:14:15]} {[%emt 00:00:24]} 9. Kh1
{[%clk 00:15:31]} {[%emt 00:00:01]} Rb8 {[%clk 00:14:04]} {[%emt 00:00:17]} 10.
e4 {[%clk 00:15:34]} {[%emt 00:00:02]} dxe3 {[%clk 00:13:59]} {[%emt 00:00:10]}
11. Bxe3 {[%clk 00:15:37]} {[%emt 00:00:02]} Nd5 {[%clk 00:14:00]} {[%emt
00:00:04]} 12. Bg1 {[%clk 00:15:40]} {[%emt 00:00:01]} Bf6 {[%clk 00:14:01]}
{[%emt 00:00:05]} 13. c3 {[%clk 00:15:33]} {[%emt 00:00:12]} b5 {[%clk
00:13:55]} {[%emt 00:00:11]} 14. Bxc5 {[%clk 00:15:35]} {[%emt 00:00:03]} Re8
{[%clk 00:13:59]} {[%emt 00:00:01]} 15. d4 {[%clk 00:15:33]} {[%emt 00:00:06]}
b4 {[%clk 00:14:00]} {[%emt 00:00:04]} 16. Ne5 {[%clk 00:15:30]} {[%emt
00:00:08]} Bxe5 {[%clk 00:13:43]} {[%emt 00:00:23]} 17. fxe5 {[%clk 00:15:28]}
{[%emt 00:00:06]} Ne3 {[%clk 00:13:46]} {[%emt 00:00:02]} 18. Qe2 {[%clk
00:15:17]} {[%emt 00:00:16]} Nxg2 {[%clk 00:13:12]} {[%emt 00:00:40]} 19. Kxg2
{[%clk 00:15:11]} {[%emt 00:00:10]} Bb7 {[%clk 00:13:16]} {[%emt 00:00:02]} 20.
Kg1 {[%clk 00:15:12]} {[%emt 00:00:03]} Qd5 {[%clk 00:12:58]} {[%emt 00:00:24]}
21. c4 {[%clk 00:14:51]} {[%emt 00:00:25]} Nxd4 {[%clk 00:12:56]} {[%emt
00:00:07]} 22. cxd5 {[%clk 00:14:51]} {[%emt 00:00:05]} Nxe2+ {[%clk 00:13:00]}
{[%emt 00:00:02]} 23. Kf2 {[%clk 00:14:53]} {[%emt 00:00:02]} Bxd5 {[%clk
00:12:59]} {[%emt 00:00:07]} 24. Nd2 {[%clk 00:14:46]} {[%emt 00:00:11]} Rec8
{[%clk 00:12:34]} {[%emt 00:00:30]} 25. Bd6 {[%clk 00:14:43]} {[%emt 00:00:08]}
Rc2 {[%clk 00:12:16]} {[%emt 00:00:24]} 26. Kxe2 {[%clk 00:14:24]} {[%emt
00:00:24]} Rbc8 {[%clk 00:12:14]} {[%emt 00:00:07]} 27. b3 {[%clk 00:14:02]}
{[%emt 00:00:27]} a5 {[%clk 00:12:16]} {[%emt 00:00:04]} 28. Rf4 {[%clk
00:13:42]} {[%emt 00:00:24]} g5 {[%clk 00:11:56]} {[%emt 00:00:24]} 29. Rd4
{[%clk 00:13:44]} {[%emt 00:00:02]} R8c3 {[%clk 00:11:56]} {[%emt 00:00:06]} 30.
a3 {[%clk 00:13:13]} {[%emt 00:00:37]} Bf3+ {[%clk 00:11:14]} {[%emt 00:00:47]}
31. Kf1 {[%clk 00:13:01]} {[%emt 00:00:16]} bxa3 {[%clk 00:11:11]} {[%emt
00:00:09]} 32. Rxa3 {[%clk 00:12:41]} {[%emt 00:00:24]} g4 {[%clk 00:11:03]}
{[%emt 00:00:14]} 33. Be7 {[%clk 00:12:21]} {[%emt 00:00:24]} Rc1+ {[%clk
00:10:56]} {[%emt 00:00:13]} 34. Kf2 {[%clk 00:12:25]} Rh1 {[%clk 00:10:52]}
{[%emt 00:00:09]} 35. Nxf3 {[%clk 00:12:16]} {[%emt 00:00:13]} gxf3 {[%clk
00:10:50]} {[%emt 00:00:08]} 36. Rg4+ {[%clk 00:12:19]} {[%emt 00:00:02]} 1-0

[Event "Kvibergspelen September 2019"]
[Site "Prioritet Serneke Arena, Krutvagen 2, Gothenburg, Sweden"]
[Date "2019.09.27"]
[Round "1.20"]
[White "Sjodahl, Sten"]
[Black "Petersson, Baldur Teodor"]
[Result "0-1"]
[TimeControl "15 minutes + 5 seconds per move from move one (Round 1 - 4) / 90 minutes + 30 seconds per move from move one (Round 5 - 8)"]
[BlackTitle "CM"]
[WhiteFideId "1717103"]
[BlackFideId "2309157"]
[WhiteElo "1891"]
[BlackElo "2238"]

1. e4 {[%clk 00:15:07]} {[%emt 00:00:02]} c5 {[%clk 00:15:08]} {[%emt
00:00:03]} 2. Nf3 {[%clk 00:15:10]} e6 {[%clk 00:15:11]} {[%emt 00:00:03]} 3.
d4 {[%clk 00:15:13]} {[%emt 00:00:02]} cxd4 {[%clk 00:15:14]} {[%emt 00:00:03]}
4. Nxd4 {[%clk 00:15:17]} a6 {[%clk 00:15:17]} {[%emt 00:00:02]} 5. Be3 {[%clk
00:15:15]} {[%emt 00:00:05]} Nf6 {[%clk 00:14:53]} {[%emt 00:00:29]} 6. f3
{[%clk 00:15:15]} {[%emt 00:00:06]} Qc7 {[%clk 00:14:55]} {[%emt 00:00:03]} 7.
Qd2 {[%clk 00:15:18]} {[%emt 00:00:02]} d5 {[%clk 00:14:40]} {[%emt 00:00:20]}
8. Bg5 {[%clk 00:14:11]} {[%emt 00:01:12]} dxe4 {[%clk 00:13:29]} {[%emt
00:01:16]} 9. Bxf6 {[%clk 00:14:05]} {[%emt 00:00:11]} gxf6 {[%clk 00:13:32]}
{[%emt 00:00:02]} 10. fxe4 {[%clk 00:14:07]} {[%emt 00:00:03]} Nc6 {[%clk
00:13:11]} {[%emt 00:00:25]} 11. Nc3 {[%clk 00:13:45]} {[%emt 00:00:28]} h5
{[%clk 00:12:52]} {[%emt 00:00:24]} 12. Qf2 {[%clk 00:13:10]} {[%emt 00:00:39]}
Bc5 {[%clk 00:12:24]} {[%emt 00:00:34]} 13. Nce2 {[%clk 00:12:36]} {[%emt
00:00:40]} Nxd4 {[%clk 00:11:55]} {[%emt 00:00:33]} 14. Nxd4 {[%clk 00:12:35]}
{[%emt 00:00:06]} Qb6 {[%clk 00:11:58]} {[%emt 00:00:03]} 15. O-O-O {[%clk
00:12:22]} {[%emt 00:00:17]} e5 {[%clk 00:11:57]} {[%emt 00:00:06]} 16. Qd2
{[%clk 00:12:02]} {[%emt 00:00:25]} Bxd4 {[%clk 00:11:56]} {[%emt 00:00:06]}
0-1